bitfinex/quotes_SOLUSD_20250617
["timestamp","ask_amount","ask_price","bid_price","bid_amount"]
[1750129213416,8.85942469,153.5,153.45,8.85942469]
[1750129213604,8.85942469,153.49,153.45,8.85942469]
[1750129213799,8.85942469,153.49,153.44,8.85942469]
[1750129214006,8.85942469,153.45,153.38,1.541]
[1750129214320,8.85942469,153.45,153.36,69.96594762]
[1750129214321,9.06,153.44,153.36,63.35994762]
[1750129214621,8.85942469,153.42,153.37,8.85942469]
[1750129215094,8.85942469,153.41,153.37,8.85942469]
[1750129215286,8.2012,153.48,153.4,8.85942469]
[1750129215488,8.85942469,153.45,153.4,8.85942469]
[1750129215702,41.1,153.47,153.4,8.85942469]
[1750129215703,8.85942469,153.44,153.4,8.85942469]
[1750129215899,8.85942469,153.44,153.39,8.85942469]
[1750129216296,8.85942469,153.44,153.4,8.85942469]
[1750129217106,15.57634413,153.47,153.39,8.85942469]
[1750129217316,8.85942469,153.44,153.4,6.51890482]
[1750129217685,8.85942469,153.44,153.4,15.37832951]
[1750129217890,15.57634413,153.47,153.4,15.37832951]
[1750129218211,8.85942469,153.44,153.4,15.37832951]
[1750129218708,6.586,153.4,153.36,63.35994762]
[1750129219417,47.726,153.4,153.36,63.35994762]
[1750129219714,8.85942469,153.39,153.36,63.35994762]
[1750129220023,8.85942469,153.37,153.36,63.35994762]
[1750129220186,15.37960464,153.37,153.36,63.35994762]
[1750129220892,8.85942469,153.38,153.36,63.35994762]
[1750129221100,8.85942469,153.37,153.36,63.35994762]
[1750129221293,6.51942808,153.39,153.36,63.35994762]
[1750129221501,8.85942469,153.37,153.36,63.35994762]
[1750129221937,0.28432314,153.35,153.23,1.5537]
[1750129222229,8.85942469,153.3,153.25,8.85942469]
[1750129222390,8.85942469,153.3,153.26,8.85942469]
[1750129222593,8.85942469,153.3,153.2,6.6155]
[1750129222594,8.85942469,153.27,153.18,17.87376128]
[1750129222918,32.08,153.29,153.22,8.85942469]
[1750129223101,13.25985486,153.31,153.24,8.85942469]
[1750129223300,9.06,153.28,153.26,8.85942469]
[1750129224010,9.06,153.28,153.21,26.0]
[1750129224208,8.85942469,153.27,153.23,8.85942469]
[1750129224514,9.06,153.28,153.21,32.52671362]
[1750129224737,8.85942469,153.27,153.22,8.85942469]
[1750129225427,8.85942469,153.27,153.23,8.85942469]
[1750129226139,8.85942469,153.27,153.21,26.0]
[1750129226140,15.38394175,153.27,153.21,26.0]
[1750129226423,9.06,153.28,153.22,8.85942469]
[1750129226424,8.85942469,153.26,153.22,8.85942469]
[1750129227322,15.58409184,153.28,153.22,8.85942469]
[1750129227524,8.85942469,153.26,153.22,8.85942469]
[1750129227726,8.85942469,153.26,153.21,15.38626475]
[1750129228102,8.85942469,153.26,153.21,8.85942469]
[1750129228418,8.85942469,153.26,153.21,15.38639731]
[1750129228629,8.85942469,153.25,153.21,15.38639731]
[1750129229001,8.85942469,153.26,153.21,15.38639731]
[1750129229333,8.85942469,153.26,153.22,8.85942469]
[1750129231530,9.06,153.28,153.23,8.85942469]
[1750129231838,8.85942469,153.27,153.21,6.52692263]
[1750129232036,8.85942469,153.26,153.2,6.52731961]
[1750129232204,15.58410433,153.28,153.2,6.52731961]
[1750129232205,8.85942469,153.25,153.2,8.85942469]
[1750129232404,8.85942469,153.25,153.21,8.85942469]
[1750129232604,8.85942469,153.25,153.19,26.0]
[1750129232605,8.85942469,153.26,153.22,8.85942469]
[1750129233313,8.85942469,153.26,153.21,15.38620819]
[1750129233708,8.85942469,153.24,153.18,6.52789293]
[1750129233905,31.8,153.24,153.18,15.38731762]
[1750129234421,8.85942469,153.23,153.19,8.85942469]
[1750129234923,8.85942469,153.22,153.17,6.5286936]
[1750129235108,8.85942469,153.22,153.18,8.85942469]
[1750129236119,8.85942469,153.23,153.19,8.85942469]
[1750129236864,8.85942469,153.23,153.16,6.52911987]
[1750129237138,38.32575747,153.24,153.18,8.85942469]
[1750129237305,31.66,153.23,153.2,8.85942469]
[1750129237634,40.51942469,153.23,153.19,8.85942469]
[1750129238516,31.66,153.23,153.18,8.85942469]
[1750129238709,31.66,153.23,153.17,8.85942469]
[1750129239338,31.66,153.23,153.15,43.86996451]
[1750129239339,8.85942469,153.18,153.15,43.86996451]
[1750129239631,40.45942469,153.19,153.15,50.39949662]
[1750129239811,31.6,153.19,153.16,8.85942469]
[1750129240333,31.6,153.19,153.15,50.39949662]
[1750129240334,31.6,153.19,153.15,59.25892131]
[1750129241314,31.6,153.19,153.15,50.39949662]
[1750129241523,6.1223,153.23,153.17,8.85942469]
[1750129241723,17.85942469,153.26,153.21,8.85942469]
[1750129241913,8.85942469,153.24,153.15,50.39949662]
[1750129242115,8.85942469,153.22,153.18,8.85942469]
[1750129242516,9.0,153.26,153.19,6.52771398]
[1750129242719,9.0,153.26,153.22,8.85942469]
[1750129243026,49.37942469,153.26,153.22,8.85942469]
[1750129243421,49.33942469,153.26,153.19,6.52771398]
[1750129243632,8.85942469,153.25,153.21,8.85942469]
[1750129244140,40.33942469,153.25,153.19,6.52771398]
[1750129244338,8.85942469,153.24,153.19,15.38713867]
[1750129244523,8.85942469,153.24,153.19,6.52771398]
[1750129244716,8.85942469,153.24,153.2,8.85942469]
[1750129245437,40.33942469,153.25,153.2,8.85942469]
[1750129246024,9.0,153.26,153.22,8.85942469]
[1750129246230,40.44,153.26,153.22,8.85942469]
[1750129246436,9.0,153.26,153.22,8.85942469]
[1750129246642,40.44,153.26,153.23,8.85942469]
[1750129247641,9.0,153.26,153.19,22.84731708]
[1750129247825,9.0,153.26,153.24,8.85942469]
[1750129248142,9.0,153.26,153.25,8.85942469]
[1750129248510,9.0,153.26,153.19,22.84731708]
[1750129248715,9.0,153.26,153.24,8.85942469]
[1750129249419,9.0,153.26,153.23,8.85942469]
[1750129249633,17.85942469,153.26,153.22,8.85942469]
[1750129249833,8.85942469,153.25,153.2,8.85942469]
[1750129250037,8.85942469,153.25,153.21,8.85942469]
[1750129250239,8.85942469,153.25,153.19,6.52771398]
[1750129250240,17.85942469,153.26,153.22,8.85942469]
[1750129250440,9.0,153.26,153.22,8.85942469]
[1750129250643,9.0,153.26,153.22,15.38594837]
[1750129251019,17.85942469,153.26,153.2,6.52741514]
[1750129251344,8.85942469,153.25,153.2,6.52741514]
[1750129251522,8.85942469,153.25,153.2,15.38683983]
[1750129251727,8.85942469,153.25,153.2,6.52741514]
[1750129251939,8.85942469,153.25,153.21,8.85942469]
[1750129252139,8.85942469,153.25,153.2,15.38683983]
[1750129252458,31.26,153.24,153.2,15.38683983]
[1750129252950,31.26,153.24,153.21,8.85942469]
[1750129253141,31.26,153.24,153.18,6.52826739]
[1750129253451,31.26,153.24,153.21,8.85942469]
[1750129254235,40.11942469,153.24,153.2,8.85942469]
[1750129254432,40.11942469,153.24,153.19,8.85942469]
[1750129254633,8.85942469,153.22,153.18,8.85942469]
[1750129254853,37.78578752,153.24,153.2,8.85942469]
[1750129254854,40.11942469,153.24,153.2,8.85942469]
[1750129255028,40.11942469,153.24,153.19,6.52757126]
[1750129255230,8.85942469,153.23,153.19,8.85942469]
[1750129256351,8.85942469,153.23,153.18,8.85942469]
[1750129257048,15.38558602,153.23,153.18,8.85942469]
[1750129257230,15.38558602,153.23,153.16,6.52911987]
[1750129257428,8.85942469,153.22,153.17,8.85942469]
[1750129257735,9.0,153.26,153.21,26.0]
[1750129257931,9.0,153.26,153.24,8.85942469]
[1750129258541,9.0,153.26,153.24,6.52554561]
[1750129258730,9.0,153.26,153.24,15.3849703]
[1750129259634,9.0,153.26,153.25,8.85942469]
[1750129262346,9.0,153.26,153.25,15.38471017]
[1750129262546,9.0,153.26,153.25,6.52528548]
[1750129262754,9.0,153.26,153.25,15.38471017]
[1750129263959,17.85942469,153.26,153.17,6.5286936]
[1750129264129,8.85942469,153.23,153.18,8.85942469]
[1750129264325,8.85942469,153.23,153.19,8.85942469]
[1750129264533,8.85942469,153.23,153.17,6.5286936]
[1750129264534,4.86534687,153.24,153.18,8.85942469]
[1750129264726,30.98,153.25,153.23,8.85942469]
[1750129264942,30.98,153.25,153.24,8.85942469]
[1750129265147,35.84871403,153.25,153.23,8.85942469]
[1750129265327,4.86871403,153.24,153.22,8.85942469]
[1750129265525,30.98,153.25,153.23,8.85942469]
[1750129265930,30.98,153.25,153.19,6.52784124]
[1750129266457,30.98,153.25,153.23,8.85942469]
[1750129267354,4.87566913,153.24,153.23,8.85942469]
[1750129267658,4.87566913,153.24,153.22,8.85942469]
[1750129267859,30.98,153.25,153.22,8.85942469]
[1750129268061,4.87591666,153.24,153.23,8.85942469]
[1750129268232,30.98,153.25,153.23,8.85942469]
[1750129268555,30.98,153.25,153.24,8.85942469]
[1750129268749,30.98,153.25,153.22,6.5264807]
[1750129268750,42.38098034,153.25,153.16,42.32194924]
[1750129268960,8.85942469,153.23,153.19,8.85942469]
[1750129269260,4.87569265,153.22,153.18,8.85942469]
[1750129269433,8.85942469,153.23,153.18,8.85942469]
[1750129269780,4.87705868,153.22,153.18,8.85942469]
[1750129269966,8.85942469,153.23,153.18,8.85942469]
[1750129270128,4.87714806,153.22,153.19,8.85942469]
[1750129270331,8.85942469,153.23,153.19,8.85942469]
[1750129270561,4.87708632,153.22,153.17,6.5285566]
[1750129270740,4.87708632,153.22,153.14,26.0]
[1750129270741,8.85942469,153.22,153.14,26.0]
[1750129270943,6.52616862,153.23,153.07,45.92599381]
[1750129270944,8.85942469,153.19,153.12,6.53070914]
[1750129271143,4.87814997,153.18,153.14,8.85942469]
[1750129271345,8.85942469,153.17,153.13,8.85942469]
[1750129271545,8.85942469,153.18,153.13,8.85942469]
[1750129271859,4.87722435,153.17,153.14,8.85942469]
[1750129272056,8.85942469,153.18,153.14,8.85942469]
[1750129272274,42.38591482,153.17,153.14,8.85942469]
[1750129272457,42.38591482,153.17,153.11,6.53115316]
[1750129272942,42.38591482,153.17,153.12,6.5308227]
[1750129273149,46.36811829,153.17,153.12,6.5308227]
[1750129274138,39.83942469,153.17,153.12,6.5308227]
[1750129274452,39.83942469,153.17,153.15,52.7293892]
[1750129274453,30.98,153.17,153.15,52.7293892]
[1750129274655,30.98,153.17,153.15,43.86996451]
[1750129274870,46.16882361,153.17,153.09,6.53199046]
[1750129275039,8.85942469,153.14,153.09,6.53199046]
[1750129275239,39.83942469,153.14,153.1,8.85942469]
[1750129275850,30.98,153.14,153.1,8.85942469]
[1750129276257,46.36969722,153.14,153.05,8.1339]
[1750129276450,39.83942469,153.14,153.09,8.85942469]
[1750129276652,8.85942469,153.13,153.09,8.85942469]
[1750129276863,39.83942469,153.14,153.1,8.85942469]
[1750129277042,30.98,153.14,153.12,8.85942469]
[1750129277369,30.98,153.14,153.13,8.85942469]
[1750129277565,30.98,153.14,153.12,8.85942469]
[1750129277749,39.83942469,153.16,153.12,8.85942469]
[1750129278767,30.98,153.16,153.13,8.85942469]
[1750129279563,30.98,153.16,153.1,6.53130986]
[1750129279746,30.98,153.16,153.13,8.85942469]
[1750129279955,39.83942469,153.16,153.12,8.85942469]
[1750129280254,30.98,153.16,153.12,8.85942469]
[1750129280644,30.98,153.16,153.09,6.53210529]
[1750129280846,30.98,153.16,153.12,8.85942469]
[1750129281154,30.98,153.16,153.12,15.39001299]
[1750129281356,30.98,153.16,153.13,8.85942469]
[1750129281860,30.98,153.16,153.12,6.5305883]
[1750129282059,30.98,153.16,153.12,15.39001299]
[1750129282765,30.98,153.16,153.13,8.85942469]
[1750129283265,39.64,153.17,153.11,6.53114441]
[1750129283453,39.64,153.17,153.14,8.85942469]
[1750129283773,8.85942469,153.16,153.11,6.53114441]
[1750129283980,48.49942469,153.17,153.13,8.85942469]
[1750129284266,39.64,153.17,153.15,8.85942469]
[1750129284796,8.66,153.17,153.15,8.85942469]
[1750129285548,8.66,153.17,153.11,16.3281301]
[1750129285745,8.66,153.17,153.14,8.85942469]
[1750129286053,8.66,153.17,153.15,8.85942469]
[1750129286457,8.66,153.17,153.14,15.38907419]
[1750129286979,8.66,153.17,153.14,6.5296495]
[1750129287142,8.66,153.17,153.14,15.38907419]
[1750129288963,14.57065199,153.17,153.13,12.44093699]
[1750129289650,8.66,153.17,153.14,5.91065199]
[1750129289987,8.66,153.17,153.13,12.44093699]
[1750129290346,39.64,153.17,153.13,12.44093699]
[1750129290547,8.66,153.17,153.15,12.44019818]
[1750129290768,8.66,153.17,153.16,5.91065199]
[1750129291280,8.66,153.17,153.15,12.44019818]
[1750129292047,8.66,153.17,153.16,5.91065199]
[1750129292660,8.66,153.17,153.16,12.43977186]
[1750129293253,6.5883,153.24,153.16,28.76257154]
[1750129293449,8.44,153.24,153.21,5.91065199]
[1750129293663,39.4,153.24,153.21,5.91065199]
[1750129294185,39.4,153.24,153.2,5.91065199]
[1750129294468,39.4,153.24,153.21,5.91065199]
[1750129294671,30.96,153.23,153.16,16.32279968]
[1750129294876,30.96,153.23,153.21,5.91065199]
[1750129295174,30.96,153.23,153.2,5.91065199]
[1750129295980,24.84462399,153.22,153.18,5.91065199]
[1750129298364,36.87065199,153.23,153.18,12.43883772]
[1750129298566,30.96,153.23,153.2,5.91065199]
[1750129298972,30.96,153.23,153.16,16.32279968]
[1750129299168,8.44,153.24,153.2,5.91065199]
[1750129299482,30.94,153.23,153.21,5.91065199]
[1750129299978,30.94,153.23,153.16,16.32279968]
[1750129300159,30.94,153.23,153.2,5.91065199]
[1750129300779,30.94,153.23,153.16,16.32279968]
[1750129300967,14.35065199,153.24,153.19,5.91065199]
[1750129301162,36.85065199,153.23,153.19,5.91065199]
[1750129302051,30.94,153.23,153.19,5.91065199]
[1750129302374,36.85065199,153.23,153.19,5.91065199]
[1750129302990,43.37679546,153.23,153.18,5.91065199]
[1750129303299,43.37679546,153.23,153.17,6.5283027]
[1750129303300,5.91065199,153.21,153.15,6.52918929]
[1750129303473,5.91065199,153.21,153.16,5.91065199]
[1750129303677,36.85065199,153.2,153.16,5.91065199]
[1750129303872,36.85065199,153.2,153.15,12.43984128]
[1750129304791,36.85065199,153.2,153.15,5.91065199]
[1750129304792,43.37817838,153.2,153.15,5.91065199]
[1750129304970,18.64964886,153.19,153.12,1.5798]
[1750129305170,5.91065199,153.18,153.12,1.5798]
[1750129305372,37.46752639,153.2,153.11,6.53125204]
[1750129305373,5.91065199,153.17,153.11,6.53125204]
[1750129305777,5.91065199,153.16,153.12,5.91065199]
[1750129306081,5.91065199,153.15,153.11,5.91065199]
[1750129306283,5.91065199,153.15,153.1,6.53159624]
[1750129306284,8.44,153.16,153.1,5.91065199]
[1750129306470,5.91065199,153.14,153.1,5.91065199]
[1750129306671,36.83065199,153.14,153.09,6.53210529]
[1750129306870,39.79005562,153.14,153.1,8.87005562]
[1750129307334,30.92,153.14,153.1,8.87005562]
[1750129307497,18.933972,153.13,153.06,6.5333239]
[1750129307790,27.80402762,153.13,153.08,8.87005562]
[1750129307975,27.80402762,153.13,153.09,8.87005562]
[1750129310085,39.79005562,153.14,153.1,8.87005562]
[1750129310690,39.79005562,153.14,153.06,6.5333856]
[1750129310896,30.92,153.14,153.06,6.5333856]
[1750129311200,30.92,153.14,153.11,8.87005562]
[1750129311396,30.92,153.14,153.06,22.8668496]
[1750129311572,8.87005562,153.12,153.06,6.5333856]
[1750129311977,8.87005562,153.12,153.07,8.87005562]
[1750129312204,8.87005562,153.12,153.08,8.87005562]
[1750129312708,8.87005562,153.12,153.09,6.53210529]
[1750129312881,27.51970448,153.13,153.09,6.53210529]
[1750129313380,30.92,153.14,153.09,6.53210529]
[1750129313381,8.44,153.16,153.11,8.87005562]
[1750129313576,8.44,153.16,153.13,8.87005562]
[1750129313974,8.44,153.16,153.09,31.73242415]
[1750129313975,8.44,153.16,153.15,8.87005562]
[1750129314989,8.44,153.16,153.15,15.39960181]
[1750129315586,8.44,153.16,153.15,6.52954619]
[1750129315788,8.44,153.16,153.15,8.87005562]
[1750129316104,8.44,153.16,153.13,6.530399]
[1750129316105,8.44,153.16,153.13,15.40045462]
[1750129316306,8.44,153.16,153.12,32.53075194]
[1750129316488,8.44,153.16,153.12,6.53075194]
[1750129316680,8.44,153.16,153.13,8.87005562]
[1750129317314,8.44,153.16,153.12,6.53075194]
[1750129317807,8.44,153.16,153.13,8.87005562]
[1750129318593,8.44,153.16,153.12,6.53075194]
[1750129318802,8.44,153.16,153.14,8.87005562]
[1750129318991,8.44,153.16,153.12,6.53075194]
[1750129319186,8.44,153.16,153.1,6.53167864]
[1750129320714,17.31005562,153.16,153.12,8.87005562]
[1750129320897,23.83922629,153.16,153.1,6.53167864]
[1750129321206,8.87005562,153.15,153.11,8.87005562]
[1750129322512,8.87005562,153.15,153.1,15.40173426]
[1750129322714,8.87005562,153.14,153.1,8.87005562]
[1750129322895,8.44,153.16,153.12,8.87005562]
[1750129323214,39.3,153.16,153.12,8.87005562]
[1750129323599,48.17005562,153.16,153.12,8.87005562]
[1750129323796,9.01221719,153.15,153.08,6.53217096]
[1750129323996,8.87005562,153.14,153.09,8.87005562]
[1750129324197,8.87005562,153.14,153.1,8.87005562]
[1750129324395,54.69930427,153.16,153.11,8.87005562]
[1750129324801,8.87005562,153.15,153.11,8.87005562]
[1750129325315,27.51970448,153.15,153.1,8.87005562]
[1750129325513,27.51970448,153.15,153.09,8.87005562]
[1750129325514,27.80402762,153.14,153.09,8.87005562]
[1750129325904,8.87005562,153.13,153.08,26.0]
[1750129326117,18.933972,153.14,153.1,8.87005562]
[1750129326301,18.933972,153.14,153.09,6.53192124]
[1750129326501,25.46400759,153.14,153.1,8.87005562]
[1750129326718,34.04934914,153.15,153.1,8.87005562]
[1750129326916,18.64964886,153.15,153.11,8.87005562]
[1750129327112,25.17929224,153.15,153.11,8.87005562]
[1750129327424,25.17922517,153.15,153.11,8.87005562]
[1750129327625,34.04928079,153.15,153.1,8.87005562]
[1750129327828,6.03247597,153.2,153.09,31.7322401]
[1750129328002,18.64964886,153.18,153.09,15.40197686]
[1750129328202,64.90797327,153.18,153.14,8.87005562]
[1750129328415,64.90797327,153.18,153.13,8.87005562]
[1750129328720,8.87005562,153.17,153.13,8.87005562]
[1750129329025,5.91129089,153.17,153.11,6.53122823]
[1750129329316,5.91129089,153.14,153.09,5.91129089]
[1750129329495,18.933972,153.14,153.1,5.91129089]
[1750129329696,37.03561403,153.14,153.1,5.91129089]
[1750129330025,5.91129089,153.13,153.09,5.91129089]
[1750129330198,5.91129089,153.13,153.07,26.0]
[1750129330398,5.91129089,153.13,153.09,5.91129089]
[1750129330921,37.65453019,153.14,153.09,5.91129089]
[1750129331114,37.65453019,153.14,153.07,32.53257637]
[1750129331115,31.12432314,153.14,153.1,5.91129089]
[1750129331320,37.03561403,153.14,153.1,5.91129089]
[1750129331508,37.03561403,153.14,153.09,5.91129089]
[1750129331703,43.56570708,153.14,153.09,5.91129089]
[1750129331910,43.56570708,153.14,153.07,32.53257637]
[1750129331911,5.91129089,153.13,153.08,5.91129089]
[1750129332215,5.91129089,153.13,153.09,5.91129089]
[1750129332599,43.56570708,153.14,153.09,5.91129089]
[1750129332799,5.91129089,153.13,153.09,5.91129089]
[1750129333032,5.91129089,153.13,153.08,5.91129089]
[1750129333205,5.91129089,153.11,153.06,31.91129089]
[1750129333529,5.91129089,153.11,153.05,6.53381247]
[1750129333530,5.91129089,153.1,153.05,12.44510336]
[1750129333917,30.82,153.1,153.06,5.91129089]
[1750129334858,30.82,153.1,153.03,6.53440203]
[1750129334859,5.91129089,153.08,153.03,6.53440203]
[1750129335142,36.73129089,153.1,153.05,5.91129089]
[1750129335637,36.73129089,153.1,153.03,6.53440203]
[1750129335928,36.73129089,153.1,153.05,5.91129089]
[1750129336115,43.26305533,153.1,153.05,5.91129089]
[1750129337214,30.82,153.1,153.06,5.91129089]
[1750129337402,36.73129089,153.1,153.06,5.91129089]
[1750129337609,43.26304432,153.1,153.05,12.44487623]
[1750129337800,5.91129089,153.09,153.05,5.91129089]
[1750129338003,5.91129089,153.09,153.04,6.53418391]
[1750129338004,5.91129089,153.09,153.04,12.4454748]
[1750129338226,5.91129089,153.09,153.04,12.44546516]
[1750129338432,5.91129089,153.09,153.05,5.91129089]
[1750129339233,24.84526289,153.08,153.01,39.24446758]
[1750129339434,30.82,153.08,153.06,5.91129089]
[1750129339625,30.82,153.08,153.01,55.58326896]
[1750129339937,30.82,153.08,153.05,5.91129089]
[1750129340340,30.8,153.09,153.07,5.91129089]
[1750129340524,30.8,153.09,153.05,5.91129089]
[1750129340835,36.71129089,153.09,153.02,1.5474]
[1750129341013,36.71129089,153.09,153.04,5.91129089]
[1750129341208,43.24342177,153.09,153.04,5.91129089]
[1750129341409,43.24342177,153.09,153.05,5.91129089]
[1750129341410,30.8,153.09,153.05,5.91129089]
[1750129341627,30.8,153.09,153.04,6.53406187]
[1750129341628,30.8,153.09,153.04,12.44535276]
[1750129341832,36.71129089,153.09,153.04,5.91129089]
[1750129342024,30.8,153.08,153.05,5.91129089]
[1750129342412,5.91129089,153.06,153.02,6.53509345]
[1750129342612,30.8,153.08,153.04,5.91129089]
[1750129342922,30.8,153.08,153.05,5.91129089]
[1750129343635,30.8,153.08,153.05,12.44504885]
[1750129344538,18.933972,153.1,153.06,5.91129089]
[1750129344725,30.8,153.09,153.05,6.53375796]
[1750129344911,30.8,153.09,153.05,12.44504885]
[1750129345619,30.8,153.09,153.05,5.91129089]
[1750129346427,36.71129089,153.09,153.04,12.44541885]
[1750129346621,37.33211013,153.09,153.01,32.70908451]
[1750129346822,19.07613357,153.08,153.01,39.2444374]
[1750129347133,24.98742446,153.08,153.03,5.91129089]
[1750129347321,5.91129089,153.07,153.01,39.2444374]
[1750129347521,36.69129089,153.06,153.01,38.6203754]
[1750129347740,5.91129089,153.03,153.01,32.70908451]
[1750129347941,30.78,153.02,152.98,5.91129089]
[1750129348241,36.69129089,153.02,152.98,5.91129089]
[1750129348618,5.91129089,152.99,152.94,6.53814739]
[1750129348816,30.78,152.99,152.95,5.91129089]
[1750129349019,30.78,152.99,152.94,6.53814739]
[1750129349230,30.78,152.99,152.95,5.91129089]
[1750129349616,5.91129089,152.98,152.92,6.53903869]
[1750129349817,5.91129089,152.96,152.91,5.91129089]
[1750129350037,30.76,152.95,152.93,5.91129089]
[1750129350240,30.76,152.95,152.94,5.91129089]
[1750129350540,30.76,152.95,152.93,5.91129089]
[1750129351038,30.76,152.95,152.94,5.91129089]
[1750129351238,30.76,152.95,152.93,5.91129089]
[1750129351945,30.76,152.95,152.94,5.91129089]
[1750129352139,30.76,152.95,152.9,22.89077827]
[1750129352725,30.76,152.95,152.93,5.91129089]
[1750129353744,30.76,152.95,152.92,5.91129089]
[1750129353945,30.76,152.95,152.88,5.91129089]
[1750129354145,30.76,152.95,152.87,35.25275719]
[1750129354146,5.91129089,152.93,152.87,35.25275719]
[1750129354333,5.91129089,152.93,152.89,5.91129089]
[1750129354655,5.91129089,152.92,152.87,46.10896718]
[1750129354952,30.76,152.91,152.87,39.56754808]
[1750129355258,36.67129089,152.91,152.87,39.56754808]
[1750129355617,36.67129089,152.91,152.87,33.65625719]
[1750129356029,30.76,152.91,152.88,5.91129089]
[1750129356625,30.76,152.91,152.87,33.65625719]
[1750129356849,36.67129089,152.91,152.87,39.56754808]
[1750129357053,36.67129089,152.91,152.87,46.10904753]
[1750129357948,30.76,152.91,152.89,5.91129089]
[1750129358150,25.32980548,152.96,152.89,5.91129089]
[1750129358356,39.20216157,152.95,152.91,5.91129089]
[1750129358549,45.11345246,152.95,152.91,5.91129089]
[1750129358729,45.11345246,152.95,152.9,5.91129089]
[1750129359767,5.91129089,152.94,152.9,5.91129089]
[1750129360059,45.11345246,152.95,152.9,12.45142462]
[1750129360356,30.74,152.94,152.9,12.45142462]
[1750129360859,30.74,152.94,152.9,6.54013373]
[1750129361161,30.74,152.94,152.9,12.45142462]
[1750129361531,30.74,152.94,152.9,6.54013373]
[1750129361729,30.74,152.94,152.91,5.91129089]
[1750129362038,8.32,152.95,152.93,5.91129089]
[1750129362237,8.32,152.95,152.94,5.91129089]
[1750129362443,8.32,152.95,152.93,5.91129089]
[1750129363440,8.32,152.95,152.88,22.2633638]
[1750129363645,8.32,152.95,152.93,5.91129089]
[1750129368169,8.32,152.95,152.93,12.45021949]
[1750129368985,8.32,152.95,152.94,5.91129089]
[1750129369572,8.32,152.95,152.93,6.5389286]
[1750129369777,8.32,152.95,152.94,5.91129089]
[1750129370552,8.32,152.95,152.94,12.44980272]
[1750129371185,8.32,152.95,152.93,5.91129089]
[1750129371572,8.32,152.95,152.94,5.91129089]
[1750129372157,30.68,152.99,152.94,5.91129089]
[1750129372364,30.68,152.99,152.92,26.0]
[1750129372365,36.59129089,152.99,152.95,5.91129089]
[1750129372965,30.68,152.99,152.96,5.91129089]
[1750129373154,0.14216157,152.99,152.96,5.91129089]
[1750129373353,30.82216157,152.99,152.96,5.91129089]
[1750129373564,30.82216157,152.99,152.92,26.0]
[1750129373880,18.64964886,152.98,152.95,5.91129089]
[1750129375156,18.64964886,152.98,152.95,12.44924814]
[1750129375367,18.64964886,152.98,152.94,32.53845647]
[1750129375580,5.91129089,152.97,152.94,26.0]
[1750129375877,36.57129089,152.96,152.92,12.45063141]
[1750129376178,30.66,152.96,152.93,5.91129089]
[1750129377075,30.66,152.96,152.92,6.53934052]
[1750129377274,30.66,152.96,152.93,5.91129089]
[1750129377682,30.66,152.96,152.92,12.45063141]
[1750129377868,30.66,152.96,152.92,38.45063141]
[1750129378485,36.57129089,152.96,152.92,32.53934052]
[1750129378703,36.57129089,152.96,152.92,6.53934052]
[1750129379293,18.933972,152.95,152.91,26.0]
[1750129379458,5.91129089,152.94,152.91,26.0]
[1750129379662,5.91129089,152.94,152.85,17.8644884]
[1750129379663,36.55129089,152.93,152.89,5.91129089]
[1750129379864,30.64,152.93,152.9,5.91129089]
[1750129380661,30.64,152.93,152.9,12.45142727]
[1750129381165,30.64,152.93,152.88,38.45230785]
[1750129381166,5.91129089,152.92,152.88,38.45230785]
[1750129381473,24.84526289,152.92,152.88,31.91129089]
[1750129381666,24.84526289,152.92,152.88,26.0]
[1750129382192,24.84526289,152.89,152.87,33.65625719]
[1750129382373,18.64964886,152.87,152.82,5.91129089]
[1750129382586,30.62,152.87,152.84,5.91129089]
[1750129383680,30.62,152.87,152.83,5.91129089]
[1750129383984,5.91129089,152.85,152.81,5.91129089]
[1750129384183,27.153972,152.86,152.79,5.91129089]
[1750129384184,36.53129089,152.84,152.79,5.91129089]
[1750129384398,24.84526289,152.83,152.78,5.91129089]
[1750129384706,24.84526289,152.83,152.74,7.7493]
[1750129384707,8.22,152.86,152.82,5.91129089]
[1750129384912,8.22,152.86,152.85,5.91129089]
[1750129385388,8.22,152.86,152.85,26.0]
[1750129385581,8.22,152.86,152.85,31.91129089]
[1750129386203,8.22,152.86,152.85,26.0]
[1750129386604,8.22,152.86,152.85,31.91129089]
[1750129386806,8.22,152.86,152.85,41.43995314]
[1750129387013,8.22,152.86,152.85,34.89759135]